[Event "Mistrovství Čech mládeže 2023 - HD16"]
[Site "Harrachov, Czech Republic"]
[Date "2023.10.25"]
[Round "6.19"]
[White "Dobsa, Emma"]
[Black "Hrubý, Filip"]
[Result "1-0"]
[TimeControl "90m + 30s"]
[WhiteElo "1616"]
[BlackElo "1386"]

1. e4 {[%clk 01:30:57]} {[%emt 00:00:02]} c6 {[%clk 01:30:26]} {[%emt
00:00:36]} 2. c4 {[%clk 01:31:24]} {[%emt 00:00:02]} d5 {[%clk 01:30:49]}
{[%emt 00:00:06]} 3. exd5 {[%clk 01:31:50]} {[%emt 00:00:05]} cxd5 {[%clk
01:31:12]} {[%emt 00:00:07]} 4. cxd5 {[%clk 01:32:15]} {[%emt 00:00:04]} Qxd5
{[%clk 01:31:33]} {[%emt 00:00:10]} 5. Nc3 {[%clk 01:32:27]} {[%emt 00:00:17]}
Qd8 {[%clk 01:31:50]} {[%emt 00:00:13]} 6. d4 {[%clk 01:32:31]} {[%emt
00:00:27]} e6 {[%clk 01:24:31]} {[%emt 00:07:49]} 7. Nf3 {[%clk 01:31:31]}
{[%emt 00:01:30]} Nf6 {[%clk 01:23:33]} {[%emt 00:01:28]} 8. Bd3 {[%clk
01:31:52]} {[%emt 00:00:09]} Nc6 {[%clk 01:22:16]} {[%emt 00:01:46]} 9. O-O
{[%clk 01:32:07]} {[%emt 00:00:15]} Be7 {[%clk 01:21:58]} {[%emt 00:00:49]} 10.
Re1 {[%clk 01:32:31]} {[%emt 00:00:05]} O-O {[%clk 01:22:17]} {[%emt 00:00:11]}
11. a3 {[%clk 01:32:58]} {[%emt 00:00:04]} Nd5 {[%clk 01:12:47]} {[%emt
00:09:59]} 12. Bc2 {[%clk 01:31:15]} {[%emt 00:02:13]} Nxc3 {[%clk 01:03:34]}
{[%emt 00:09:44]} 13. bxc3 {[%clk 01:30:42]} {[%emt 00:01:03]} Bf6 {[%clk
00:57:26]} {[%emt 00:06:38]} 14. Qd3 {[%clk 01:23:37]} {[%emt 00:07:35]} g6
{[%clk 00:57:45]} {[%emt 00:00:10]} 15. Bh6 {[%clk 01:21:25]} {[%emt 00:02:42]}
Re8 {[%clk 00:51:58]} {[%emt 00:06:17]} 16. Rad1 {[%clk 01:13:58]} {[%emt
00:07:58]} a6 {[%clk 00:25:07]} {[%emt 00:27:21]} 17. Qe4 {[%clk 01:08:05]}
{[%emt 00:06:23]} Bd7 {[%clk 00:22:11]} {[%emt 00:03:26]} 18. h4 {[%clk
01:05:28]} {[%emt 00:03:07]} b5 {[%clk 00:21:15]} {[%emt 00:01:26]} 19. h5
{[%clk 01:01:43]} {[%emt 00:04:14]} Ne7 {[%clk 00:20:28]} {[%emt 00:01:18]} 20.
Ne5 {[%clk 00:59:33]} {[%emt 00:02:40]} Rc8 {[%clk 00:14:13]} {[%emt 00:06:44]}
21. Rd3 {[%clk 00:43:02]} {[%emt 00:17:01]} Nf5 {[%clk 00:11:39]} {[%emt
00:03:04]} 22. hxg6 {[%clk 00:41:44]} {[%emt 00:01:49]} hxg6 {[%clk 00:05:35]}
{[%emt 00:06:34]} 23. Rh3 {[%clk 00:36:05]} {[%emt 00:06:09]} Nxh6 {[%clk
00:00:53]} {[%emt 00:05:12]} 24. Rxh6 {[%clk 00:36:31]} {[%emt 00:00:04]} Bg7
{[%clk 00:00:52]} {[%emt 00:00:31]} 25. Nxf7 {[%clk 00:30:27]} {[%emt
00:06:34]} Kxf7 {[%clk 00:01:10]} {[%emt 00:00:11]} 26. Qxg6+ {[%clk 00:30:49]}
{[%emt 00:00:08]} Kf8 {[%clk 00:00:49]} {[%emt 00:00:52]} 27. Rh3 {[%clk
00:25:49]} {[%emt 00:05:30]} Bc6 {[%emt 00:00:38]} 28. Be4 {[%clk 00:21:22]}
{[%emt 00:04:55]} Bxe4 {[%clk 00:00:40]} {[%emt 00:00:32]} 29. Rxe4 {[%clk
00:21:50]} {[%emt 00:00:02]} Ke7 {[%clk 00:00:33]} {[%emt 00:00:38]} 30. Qxe6+
{[%clk 00:21:40]} {[%emt 00:00:40]} Kf8 {[%clk 00:00:57]} {[%emt 00:00:05]} 31.
Rf4+ {[%clk 00:21:57]} {[%emt 00:00:13]} Bf6 {[%clk 00:00:49]} {[%emt
00:00:39]} 32. Rxf6+ {[%clk 00:22:24]} {[%emt 00:00:03]} 1-0

[Event "Mistrovství Čech mládeže 2023 - HD16"]
[Site "Harrachov, Czech Republic"]
[Date "2023.10.26"]
[Round "7.1"]
[White "Hozda, Max"]
[Black "Andrle, Filip"]
[Result "1/2-1/2"]
[TimeControl "90m + 30s"]
[WhiteElo "2105"]
[BlackElo "1830"]

1. e4 {[%clk 01:30:49]} {[%emt 00:00:11]} e6 {[%clk 01:30:55]} {[%emt
00:00:06]} 2. d4 {[%clk 01:31:08]} {[%emt 00:00:11]} d5 {[%clk 01:31:10]}
{[%emt 00:00:14]} 3. exd5 {[%clk 01:30:45]} {[%emt 00:00:53]} exd5 {[%clk
01:31:31]} {[%emt 00:00:09]} 4. Nf3 {[%clk 01:30:49]} {[%emt 00:00:26]} Bd6
{[%clk 01:31:46]} {[%emt 00:00:15]} 5. Bd3 {[%clk 01:31:01]} {[%emt 00:00:19]}
Nf6 {[%clk 01:32:03]} {[%emt 00:00:13]} 6. O-O {[%clk 01:31:16]} {[%emt
00:00:15]} O-O {[%clk 01:32:10]} {[%emt 00:00:23]} 7. Bg5 {[%clk 01:31:28]}
{[%emt 00:00:18]} Bg4 {[%clk 01:32:29]} {[%emt 00:00:10]} 8. Nbd2 {[%clk
01:30:29]} {[%emt 00:01:30]} c6 {[%clk 01:32:12]} {[%emt 00:00:47]} 9. c3
{[%clk 01:30:05]} {[%emt 00:00:54]} Nbd7 {[%clk 01:31:51]} {[%emt 00:00:50]} 10.
Re1 {[%clk 01:30:13]} {[%emt 00:00:23]} Qc7 {[%clk 01:31:56]} {[%emt 00:00:25]}
11. Qc2 {[%clk 01:28:39]} {[%emt 00:02:04]} Rfe8 {[%clk 01:32:03]} {[%emt
00:00:23]} 12. Bh4 {[%clk 01:27:03]} {[%emt 00:02:07]} Bh5 {[%clk 01:30:22]}
{[%emt 00:02:10]} 13. Bg3 {[%clk 01:27:20]} {[%emt 00:00:14]} Bg6 {[%clk
01:29:04]} {[%emt 00:01:48]} 14. Bxg6 {[%clk 01:27:28]} {[%emt 00:00:22]} hxg6
{[%clk 01:29:18]} {[%emt 00:00:16]} 15. Bxd6 {[%clk 01:27:28]} {[%emt
00:00:30]} Qxd6 {[%clk 01:29:22]} {[%emt 00:00:26]} 16. h3 {[%clk 01:27:18]}
{[%emt 00:00:40]} Rxe1+ {[%clk 01:28:15]} {[%emt 00:01:37]} 1/2-1/2

[Event "Mistrovství Čech mládeže 2023 - HD16"]
[Site "Harrachov, Czech Republic"]
[Date "2023.10.26"]
[Round "7.2"]
[White "Davídek, Zdeněk"]
[Black "Veverka, Vladimír"]
[Result "1/2-1/2"]
[TimeControl "90m + 30s"]
[WhiteElo "2110"]
[BlackElo "1849"]

1. Nf3 {[%clk 01:30:51]} {[%emt 00:00:08]} Nf6 {[%clk 01:30:01]} {[%emt
00:01:00]} 2. g3 {[%clk 01:31:15]} {[%emt 00:00:06]} e6 {[%clk 01:29:25]}
{[%emt 00:01:06]} 3. Bg2 {[%clk 01:31:38]} {[%emt 00:00:06]} d5 {[%clk
01:29:48]} {[%emt 00:00:08]} 4. O-O {[%clk 01:31:58]} {[%emt 00:00:10]} c5
{[%clk 01:28:34]} {[%emt 00:01:45]} 5. c4 {[%clk 01:32:10]} {[%emt 00:00:18]}
dxc4 {[%clk 01:26:37]} {[%emt 00:02:28]} 6. Na3 {[%clk 01:32:03]} {[%emt
00:00:37]} Bd7 {[%clk 01:21:47]} {[%emt 00:05:20]} 7. Ne5 {[%clk 01:30:41]}
{[%emt 00:01:51]} Qc7 {[%clk 01:18:46]} {[%emt 00:03:31]} 8. Naxc4 {[%clk
01:27:07]} {[%emt 00:04:04]} Nc6 {[%clk 01:11:32]} {[%emt 00:07:45]} 9. Nxd7
{[%clk 01:24:27]} {[%emt 00:03:08]} Qxd7 {[%clk 00:56:56]} {[%emt 00:15:07]} 10.
b3 {[%clk 01:22:57]} {[%emt 00:02:00]} Be7 {[%clk 00:54:48]} {[%emt 00:02:38]}
11. Bb2 {[%clk 01:22:03]} {[%emt 00:01:24]} O-O {[%clk 00:53:48]} {[%emt
00:01:30]} 12. d3 {[%clk 01:17:47]} {[%emt 00:04:45]} Rac8 {[%clk 00:45:02]}
{[%emt 00:09:18]} 13. Rc1 {[%clk 01:13:25]} {[%emt 00:04:51]} Rfd8 {[%clk
00:42:45]} {[%emt 00:02:47]} 14. Qd2 {[%clk 01:08:44]} {[%emt 00:05:11]} Nd5
{[%clk 00:40:30]} {[%emt 00:02:45]} 15. Rfd1 {[%clk 00:59:03]} {[%emt
00:10:11]} Bf6 {[%clk 00:36:23]} {[%emt 00:04:37]} 16. Bxd5 {[%clk 00:56:40]}
{[%emt 00:02:51]} exd5 {[%clk 00:33:07]} {[%emt 00:03:47]} 17. Bxf6 {[%clk
00:56:35]} {[%emt 00:00:35]} gxf6 {[%clk 00:33:29]} {[%emt 00:00:08]} 18. Ne3
{[%clk 00:55:51]} {[%emt 00:01:14]} d4 {[%clk 00:32:36]} {[%emt 00:01:24]} 19.
Ng2 {[%clk 00:54:08]} {[%emt 00:02:12]} Ne5 {[%clk 00:30:38]} {[%emt 00:02:29]}
20. Qh6 {[%clk 00:49:21]} {[%emt 00:05:17]} Qf5 {[%clk 00:27:44]} {[%emt
00:03:24]} 21. Nf4 {[%clk 00:44:10]} {[%emt 00:05:40]} Qg5 {[%clk 00:25:26]}
{[%emt 00:02:50]} 22. Qh3 {[%clk 00:43:15]} {[%emt 00:01:24]} Ng6 {[%clk
00:24:43]} {[%emt 00:01:13]} 23. Nh5 {[%clk 00:30:25]} {[%emt 00:13:20]} Ne7
{[%clk 00:19:10]} {[%emt 00:06:04]} 24. Nf4 {[%clk 00:19:59]} {[%emt 00:10:56]}
Rc6 {[%clk 00:17:02]} {[%emt 00:02:37]} 25. Rc2 {[%clk 00:14:37]} {[%emt
00:05:52]} Ng6 {[%clk 00:11:38]} {[%emt 00:05:54]} 26. Qg2 {[%clk 00:13:53]}
{[%emt 00:01:13]} Nxf4 {[%clk 00:11:13]} {[%emt 00:00:55]} 27. gxf4 {[%emt
00:00:04]} Qxg2+ {[%clk 00:11:27]} {[%emt 00:00:14]} 28. Kxg2 {[%clk 00:14:51]}
{[%emt 00:00:01]} f5 {[%clk 00:10:08]} {[%emt 00:01:49]} 29. Rdc1 {[%clk
00:13:47]} {[%emt 00:01:33]} Rg6+ {[%clk 00:10:08]} {[%emt 00:00:30]} 30. Kf3
{[%clk 00:14:04]} {[%emt 00:00:13]} b6 {[%clk 00:10:26]} {[%emt 00:00:12]} 31.
Rc4 {[%clk 00:12:56]} {[%emt 00:01:36]} a5 {[%clk 00:08:46]} {[%emt 00:02:12]}
32. a3 {[%clk 00:13:18]} {[%emt 00:00:08]} Rh6 {[%clk 00:09:10]} {[%emt
00:00:06]} 33. b4 {[%clk 00:13:38]} {[%emt 00:00:10]} axb4 {[%clk 00:09:18]}
{[%emt 00:00:22]} 34. axb4 {[%clk 00:14:07]} cxb4 {[%clk 00:09:04]} {[%emt
00:00:44]} 35. Rxb4 {[%clk 00:14:31]} {[%emt 00:00:06]} Rdd6 {[%clk 00:06:10]}
{[%emt 00:03:24]} 36. Rcc4 {[%clk 00:14:30]} {[%emt 00:00:30]} Rdg6 {[%clk
00:05:55]} {[%emt 00:00:45]} 37. e4 {[%clk 00:12:15]} {[%emt 00:02:45]} dxe3
{[%clk 00:06:04]} {[%emt 00:00:22]} 38. Kxe3 {[%clk 00:12:22]} {[%emt
00:00:23]} Rxh2 {[%clk 00:05:48]} {[%emt 00:00:45]} 39. Rb5 {[%clk 00:12:07]}
{[%emt 00:00:46]} Rh3+ {[%clk 00:03:01]} {[%emt 00:03:17]} 40. Ke2 {[%clk
00:12:22]} {[%emt 00:00:15]} Re6+ {[%clk 00:03:06]} {[%emt 00:00:26]} 41. Kd2
{[%clk 00:10:14]} {[%emt 00:02:37]} Rf3 {[%clk 00:02:35]} {[%emt 00:01:01]} 42.
Rxf5 {[%clk 00:10:34]} {[%emt 00:00:10]} Rxf2+ {[%clk 00:01:24]} {[%emt
00:01:42]} 1/2-1/2

[Event "Mistrovství Čech mládeže 2023 - HD16"]
[Site "Harrachov, Czech Republic"]
[Date "2023.10.26"]
[Round "7.3"]
[White "Kučina, Ondřej"]
[Black "Dvořák, Jan"]
[Result "0-1"]
[TimeControl "90m + 30s"]
[WhiteElo "1592"]
[BlackElo "1789"]

1. d4 {[%clk 01:30:59]} {[%emt 00:00:01]} Nf6 {[%clk 01:30:52]} {[%emt
00:00:08]} 2. g3 {[%clk 01:31:17]} {[%emt 00:00:12]} e6 {[%clk 01:29:38]}
{[%emt 00:01:44]} 3. Nf3 {[%clk 01:30:53]} {[%emt 00:00:53]} b6 {[%clk
01:29:40]} {[%emt 00:00:28]} 4. Bg2 {[%clk 01:31:05]} {[%emt 00:00:18]} Bb7
{[%clk 01:29:47]} {[%emt 00:00:24]} 5. O-O {[%clk 01:31:23]} {[%emt 00:00:11]}
Be7 {[%clk 01:29:44]} {[%emt 00:00:33]} 6. c4 {[%clk 01:31:29]} {[%emt
00:00:23]} O-O {[%clk 01:29:50]} {[%emt 00:00:24]} 7. Nc3 {[%clk 01:31:25]}
{[%emt 00:00:35]} Ne4 {[%clk 01:29:33]} {[%emt 00:00:47]} 8. Qc2 {[%clk
01:29:41]} {[%emt 00:02:14]} Nxc3 {[%clk 01:29:38]} {[%emt 00:00:24]} 9. Qxc3
{[%clk 01:30:03]} {[%emt 00:00:08]} f5 {[%clk 01:28:20]} {[%emt 00:01:49]} 10.
Ne5 {[%clk 01:24:19]} {[%emt 00:06:13]} Bxg2 {[%clk 01:28:10]} {[%emt
00:00:39]} 11. Kxg2 {[%clk 01:24:42]} {[%emt 00:00:07]} d6 {[%clk 01:27:52]}
{[%emt 00:00:50]} 12. Nd3 {[%clk 01:21:41]} {[%emt 00:03:31]} Bf6 {[%clk
01:26:58]} {[%emt 00:01:24]} 13. f4 {[%clk 01:20:22]} {[%emt 00:01:49]} c5
{[%clk 01:24:49]} {[%emt 00:02:39]} 14. e3 {[%clk 01:19:56]} {[%emt 00:00:56]}
Nc6 {[%clk 01:24:27]} {[%emt 00:00:51]} 15. Qa3 {[%clk 01:08:54]} {[%emt
00:11:33]} cxd4 {[%clk 01:24:31]} {[%emt 00:00:27]} 16. Nb4 {[%clk 01:08:17]}
{[%emt 00:01:06]} Na5 {[%clk 01:19:37]} {[%emt 00:05:24]} 17. b3 {[%clk
01:08:09]} {[%emt 00:00:38]} dxe3 {[%clk 01:18:22]} {[%emt 00:01:45]} 18. Bb2
{[%clk 01:08:02]} {[%emt 00:00:37]} Nb7 {[%clk 01:08:52]} {[%emt 00:10:00]} 19.
Bxf6 {[%clk 01:05:49]} {[%emt 00:02:42]} Qxf6 {[%clk 01:08:33]} {[%emt
00:00:50]} 20. Qc1 {[%clk 01:03:22]} {[%emt 00:02:58]} Nc5 {[%clk 01:02:42]}
{[%emt 00:06:21]} 21. Qxe3 {[%clk 01:01:18]} {[%emt 00:02:33]} Ne4 {[%clk
01:01:10]} {[%emt 00:02:03]} 22. Nd3 {[%clk 00:59:38]} {[%emt 00:02:11]} Rfd8
{[%clk 00:54:48]} {[%emt 00:06:51]} 23. Nf2 {[%clk 00:58:43]} {[%emt 00:01:25]}
d5 {[%clk 00:53:02]} {[%emt 00:02:17]} 24. cxd5 {[%clk 00:58:11]} {[%emt
00:01:02]} exd5 {[%clk 00:53:19]} {[%emt 00:00:13]} 25. g4 {[%clk 00:44:44]}
{[%emt 00:13:56]} d4 {[%clk 00:50:27]} {[%emt 00:03:21]} 26. Nxe4 {[%clk
00:40:27]} {[%emt 00:04:47]} Qc6 {[%clk 00:48:30]} {[%emt 00:02:27]} 27. Qe2
{[%clk 00:39:43]} {[%emt 00:01:14]} Qxe4+ {[%clk 00:48:15]} {[%emt 00:00:45]}
28. Qxe4 {[%clk 00:39:21]} {[%emt 00:00:52]} fxe4 {[%clk 00:48:39]} {[%emt
00:00:06]} 29. Rfe1 {[%clk 00:39:11]} {[%emt 00:00:39]} Re8 {[%clk 00:48:51]}
{[%emt 00:00:19]} 30. Rad1 {[%clk 00:39:10]} {[%emt 00:00:31]} Rad8 {[%clk
00:48:49]} {[%emt 00:00:32]} 31. f5 {[%clk 00:38:42]} {[%emt 00:00:58]} Kf7
{[%clk 00:48:34]} {[%emt 00:00:45]} 32. Kg3 {[%clk 00:38:56]} {[%emt 00:00:15]}
d3 {[%clk 00:40:40]} {[%emt 00:08:24]} 33. Kf4 {[%clk 00:37:08]} {[%emt
00:02:18]} Rd4 {[%clk 00:40:55]} {[%emt 00:00:15]} 34. Re3 {[%clk 00:35:25]}
{[%emt 00:02:13]} Re7 {[%clk 00:35:42]} {[%emt 00:05:42]} 35. h4 {[%clk
00:34:44]} {[%emt 00:01:11]} a5 {[%clk 00:32:39]} {[%emt 00:03:34]} 36. g5
{[%clk 00:34:22]} {[%emt 00:00:51]} h5 {[%clk 00:31:56]} {[%emt 00:01:13]} 37.
a3 {[%clk 00:28:38]} {[%emt 00:06:15]} b5 {[%clk 00:32:10]} {[%emt 00:00:16]}
38. Rd2 {[%clk 00:28:23]} {[%emt 00:00:45]} a4 {[%clk 00:30:28]} {[%emt
00:02:11]} 39. b4 {[%clk 00:28:07]} {[%emt 00:00:45]} Rc4 {[%clk 00:29:12]}
{[%emt 00:01:46]} 40. f6 {[%clk 00:23:17]} {[%emt 00:05:20]} gxf6 {[%clk
00:29:06]} {[%emt 00:00:37]} 41. gxf6 {[%clk 00:20:26]} {[%emt 00:03:21]} Kxf6
{[%clk 00:29:21]} {[%emt 00:00:14]} 42. Ra2 {[%clk 00:19:47]} {[%emt 00:01:09]}
Rg7 {[%clk 00:29:06]} {[%emt 00:00:45]} 0-1

[Event "Mistrovství Čech mládeže 2023 - HD16"]
[Site "Harrachov, Czech Republic"]
[Date "2023.10.26"]
[Round "7.4"]
[White "Vyšinský, Otakar"]
[Black "Stein, Michael"]
[Result "1/2-1/2"]
[TimeControl "90m + 30s"]
[WhiteElo "1599"]
[BlackElo "1717"]

1. e4 {[%clk 01:30:50]} {[%emt 00:00:09]} e6 {[%clk 01:30:56]} {[%emt
00:00:04]} 2. d4 {[%clk 01:31:15]} {[%emt 00:00:05]} d5 {[%clk 01:31:23]}
{[%emt 00:00:03]} 3. Nc3 {[%clk 01:31:42]} {[%emt 00:00:03]} Bb4 {[%clk
01:31:49]} {[%emt 00:00:05]} 4. e5 {[%clk 01:32:08]} {[%emt 00:00:04]} c5
{[%clk 01:32:14]} {[%emt 00:00:05]} 5. a3 {[%clk 01:32:33]} {[%emt 00:00:05]}
Bxc3+ {[%clk 01:32:41]} {[%emt 00:00:03]} 6. bxc3 {[%clk 01:32:53]} {[%emt
00:00:10]} Ne7 {[%clk 01:33:04]} {[%emt 00:00:06]} 7. Nf3 {[%clk 01:33:02]}
{[%emt 00:00:22]} b6 {[%clk 01:32:53]} {[%emt 00:00:41]} 8. Bd3 {[%clk
01:30:53]} {[%emt 00:02:38]} Ba6 {[%clk 01:29:24]} {[%emt 00:03:59]} 9. O-O
{[%clk 01:28:03]} {[%emt 00:03:19]} Bxd3 {[%clk 01:27:35]} {[%emt 00:02:20]} 10.
Qxd3 {[%clk 01:28:16]} {[%emt 00:00:17]} Nbc6 {[%clk 01:25:19]} {[%emt
00:02:46]} 11. a4 {[%clk 01:25:16]} {[%emt 00:03:29]} cxd4 {[%clk 01:19:55]}
{[%emt 00:05:54]} 12. cxd4 {[%clk 01:25:27]} {[%emt 00:00:19]} Na5 {[%clk
01:17:16]} {[%emt 00:03:09]} 13. Nd2 {[%clk 01:21:40]} {[%emt 00:04:16]} Rc8
{[%clk 01:14:23]} {[%emt 00:03:24]} 14. Ba3 {[%clk 01:14:22]} {[%emt 00:07:48]}
Nc4 {[%clk 01:11:35]} {[%emt 00:03:17]} 15. Nxc4 {[%clk 01:12:09]} {[%emt
00:02:43]} Rxc4 {[%clk 01:11:28]} {[%emt 00:00:38]} 16. Bxe7 {[%clk 01:03:59]}
{[%emt 00:08:40]} Qxe7 {[%clk 01:10:20]} {[%emt 00:01:38]} 17. f4 {[%clk
00:47:36]} {[%emt 00:16:53]} O-O {[%clk 00:58:00]} {[%emt 00:12:50]} 18. f5
{[%clk 00:43:24]} {[%emt 00:04:42]} exf5 {[%clk 00:55:57]} {[%emt 00:02:33]} 19.
Rxf5 {[%clk 00:43:23]} {[%emt 00:00:30]} Qh4 {[%clk 00:51:21]} {[%emt
00:05:06]} 20. c3 {[%clk 00:40:08]} {[%emt 00:03:45]} Rfc8 {[%clk 00:47:37]}
{[%emt 00:04:14]} 21. Qf3 {[%clk 00:35:01]} {[%emt 00:05:37]} Qe4 {[%clk
00:37:15]} {[%emt 00:10:52]} 22. Rxf7 {[%clk 00:27:58]} {[%emt 00:07:34]} Qxf3
{[%clk 00:36:59]} {[%emt 00:00:46]} 23. Rxf3 {[%clk 00:28:26]} {[%emt
00:00:01]} Rxc3 {[%clk 00:37:05]} {[%emt 00:00:24]} 24. Rxc3 {[%clk 00:21:01]}
{[%emt 00:07:55]} Rxc3 {[%clk 00:36:58]} {[%emt 00:00:37]} 25. Rb1 {[%clk
00:21:29]} {[%emt 00:00:02]} Rc4 {[%clk 00:28:09]} {[%emt 00:09:19]} 26. a5
{[%clk 00:20:41]} {[%emt 00:01:18]} 1/2-1/2

[Event "Mistrovství Čech mládeže 2023 - HD16"]
[Site "Harrachov, Czech Republic"]
[Date "2023.10.26"]
[Round "7.5"]
[White "Tegda, Vojtěch"]
[Black "Večeř, Martin"]
[Result "1-0"]
[TimeControl "90m + 30s"]
[WhiteElo "1731"]
[BlackElo "1569"]

1. e4 {[%clk 01:30:57]} {[%emt 00:00:01]} c6 {[%clk 01:30:54]} {[%emt
00:00:07]} 2. d4 {[%clk 01:31:19]} {[%emt 00:00:08]} d5 {[%clk 01:31:18]}
{[%emt 00:00:06]} 3. f3 {[%clk 01:31:44]} {[%emt 00:00:05]} e6 {[%clk
01:31:27]} {[%emt 00:00:21]} 4. Nc3 {[%clk 01:31:27]} {[%emt 00:00:46]} b6
{[%clk 01:31:36]} {[%emt 00:00:22]} 5. Be3 {[%clk 01:27:50]} {[%emt 00:04:06]}
Ba6 {[%clk 01:31:48]} {[%emt 00:00:19]} 6. Bxa6 {[%clk 01:23:36]} {[%emt
00:04:44]} Nxa6 {[%clk 01:32:11]} {[%emt 00:00:07]} 7. Nge2 {[%clk 01:23:59]}
{[%emt 00:00:06]} Nf6 {[%clk 01:31:49]} {[%emt 00:00:52]} 8. O-O {[%clk
01:23:43]} {[%emt 00:00:46]} Be7 {[%clk 01:31:05]} {[%emt 00:01:14]} 9. a3
{[%clk 01:22:51]} {[%emt 00:01:22]} Nc7 {[%clk 01:29:58]} {[%emt 00:01:37]} 10.
Qe1 {[%clk 01:23:06]} {[%emt 00:00:15]} Nd7 {[%clk 01:17:31]} {[%emt 00:12:57]}
11. Qg3 {[%clk 01:21:38]} {[%emt 00:01:54]} g6 {[%clk 01:16:34]} {[%emt
00:01:30]} 12. Bh6 {[%clk 01:17:10]} {[%emt 00:04:57]} c5 {[%clk 01:05:33]}
{[%emt 00:11:33]} 13. exd5 {[%clk 01:13:34]} {[%emt 00:04:05]} Nxd5 {[%clk
01:03:59]} {[%emt 00:02:04]} 14. Nxd5 {[%clk 01:13:37]} {[%emt 00:00:27]} exd5
{[%clk 01:04:23]} {[%emt 00:00:06]} 15. Rfe1 {[%clk 01:13:09]} {[%emt
00:00:58]} f6 {[%clk 00:59:00]} {[%emt 00:05:53]} 16. Nf4 {[%clk 01:10:15]}
{[%emt 00:03:23]} Nf8 {[%clk 00:56:16]} {[%emt 00:03:15]} 17. Bg7 {[%clk
01:09:23]} {[%emt 00:01:21]} 1-0

[Event "Mistrovství Čech mládeže 2023 - HD16"]
[Site "Harrachov, Czech Republic"]
[Date "2023.10.26"]
[Round "7.6"]
[White "Hrbek, Jáchym"]
[Black "Kaplanová, Dominika"]
[Result "1-0"]
[TimeControl "90m + 30s"]
[WhiteElo "1973"]
[BlackElo "1782"]

1. e4 {[%clk 01:30:46]} {[%emt 00:00:13]} c5 {[%clk 01:30:24]} {[%emt
00:00:36]} 2. Nf3 {[%clk 01:31:07]} {[%emt 00:00:09]} e6 {[%clk 01:30:19]}
{[%emt 00:00:34]} 3. c4 {[%clk 01:30:20]} {[%emt 00:01:18]} Nc6 {[%clk
01:29:36]} {[%emt 00:01:13]} 4. Nc3 {[%clk 01:30:29]} {[%emt 00:00:21]} e5
{[%clk 01:28:37]} {[%emt 00:01:28]} 5. d3 {[%clk 01:30:47]} {[%emt 00:00:13]}
Nge7 {[%clk 01:26:52]} {[%emt 00:02:15]} 6. g3 {[%clk 01:30:22]} {[%emt
00:00:56]} g6 {[%clk 01:26:41]} {[%emt 00:00:40]} 7. Bg2 {[%clk 01:28:08]}
{[%emt 00:02:45]} Bg7 {[%clk 01:26:09]} {[%emt 00:01:01]} 8. O-O {[%clk
01:26:44]} {[%emt 00:01:54]} O-O {[%clk 01:25:39]} {[%emt 00:01:00]} 9. a3
{[%clk 01:24:49]} {[%emt 00:02:27]} d6 {[%clk 01:24:26]} {[%emt 00:01:42]} 10.
Rb1 {[%clk 01:20:53]} {[%emt 00:04:25]} Bg4 {[%clk 01:15:51]} {[%emt 00:09:06]}
11. h3 {[%clk 01:18:54]} {[%emt 00:02:29]} Be6 {[%clk 01:13:34]} {[%emt
00:02:46]} 12. b4 {[%clk 01:18:18]} {[%emt 00:01:06]} b6 {[%clk 01:12:04]}
{[%emt 00:02:00]} 13. Nd5 {[%clk 01:11:03]} {[%emt 00:07:45]} Nd4 {[%clk
01:08:48]} {[%emt 00:03:45]} 14. Nxd4 {[%clk 01:04:38]} {[%emt 00:06:56]} cxd4
{[%clk 01:05:47]} {[%emt 00:03:32]} 15. Nxe7+ {[%clk 00:55:39]} {[%emt
00:09:29]} Qxe7 {[%clk 01:05:02]} {[%emt 00:01:14]} 16. f4 {[%clk 00:55:52]}
{[%emt 00:00:18]} Rac8 {[%clk 00:59:53]} {[%emt 00:05:39]} 17. f5 {[%clk
00:50:37]} {[%emt 00:05:45]} Bd7 {[%clk 00:58:26]} {[%emt 00:01:57]} 18. Rb2
{[%clk 00:48:12]} {[%emt 00:02:56]} b5 {[%clk 00:55:21]} {[%emt 00:03:35]} 19.
cxb5 {[%clk 00:44:17]} {[%emt 00:04:26]} Bxb5 {[%clk 00:51:10]} {[%emt
00:04:41]} 20. a4 {[%clk 00:44:28]} {[%emt 00:00:19]} Bd7 {[%clk 00:49:03]}
{[%emt 00:02:36]} 21. Bd2 {[%clk 00:43:22]} {[%emt 00:01:36]} f6 {[%clk
00:47:57]} {[%emt 00:01:36]} 22. g4 {[%clk 00:41:45]} {[%emt 00:02:08]} Qe8
{[%clk 00:43:28]} {[%emt 00:04:57]} 23. Qb3+ {[%clk 00:38:08]} {[%emt
00:04:07]} Kh8 {[%clk 00:41:23]} {[%emt 00:02:35]} 24. b5 {[%clk 00:34:23]}
{[%emt 00:04:16]} a6 {[%clk 00:37:13]} {[%emt 00:04:40]} 25. Rfb1 {[%clk
00:30:55]} {[%emt 00:03:57]} axb5 {[%clk 00:31:42]} {[%emt 00:06:02]} 26. axb5
{[%clk 00:31:07]} {[%emt 00:00:18]} Rc5 {[%clk 00:28:39]} {[%emt 00:03:33]} 27.
b6 {[%clk 00:24:16]} {[%emt 00:07:21]} Qb8 {[%clk 00:23:31]} {[%emt 00:05:36]}
28. Qa3 {[%clk 00:18:36]} {[%emt 00:06:12]} Qb7 {[%clk 00:19:21]} {[%emt
00:04:41]} 29. Bb4 {[%clk 00:18:03]} {[%emt 00:01:02]} Rc6 {[%clk 00:19:21]}
{[%emt 00:00:30]} 30. Bxd6 {[%clk 00:18:13]} {[%emt 00:00:21]} Ra8 {[%clk
00:16:57]} {[%emt 00:02:55]} 31. Qxa8+ {[%clk 00:18:22]} {[%emt 00:00:21]} Qxa8
{[%clk 00:09:45]} {[%emt 00:07:42]} 32. b7 {[%clk 00:18:33]} {[%emt 00:00:18]}
Qg8 {[%clk 00:08:55]} {[%emt 00:01:21]} 33. b8=Q {[%clk 00:18:27]} {[%emt
00:00:35]} gxf5 {[%clk 00:08:37]} {[%emt 00:00:48]} 34. exf5 {[%clk 00:18:27]}
{[%emt 00:00:30]} Rc8 {[%clk 00:07:17]} {[%emt 00:01:51]} 35. Qa7 {[%clk
00:17:43]} {[%emt 00:01:12]} 1-0